bitfinex/quotes_SOLUSD_20241016
["timestamp","ask_amount","ask_price","bid_price","bid_amount"]
[1729097920154,6.4392,155.3,155.27,23.776884]
[1729097921747,6.44,155.28,155.24,6.4415]
[1729097923038,6.44,155.28,155.25,23.776884]
[1729097923565,6.4397,155.29,155.25,23.776884]
[1729097925444,6.4401,155.28,155.25,23.776884]
[1729097925759,6.44,155.28,155.25,23.776884]
[1729097926734,6.44,155.28,155.2,27.78161493]
[1729097926735,16.1004,155.28,155.2,16.33029697]
[1729097926938,6.4413,155.25,155.21,6.4428]
[1729097927158,16.1004,155.28,155.21,6.4428]
[1729097927363,6.4408,155.26,155.22,6.4424]
[1729097927540,6.4404,155.27,155.23,6.4419]
[1729097928237,6.4404,155.27,155.2,15.2106]
[1729097928450,6.441,155.26,155.22,6.4423]
[1729097928655,6.441,155.26,155.23,23.776884]
[1729097929157,6.4409,155.26,155.23,23.776884]
[1729097930859,6.4415,155.25,155.21,23.776884]
[1729097931164,6.4415,155.25,155.21,30.219584]
[1729097931863,6.4436,155.2,155.16,1.11984889]
[1729097932041,6.4442,155.18,155.1,15.1113]
[1729097932235,16.1056,155.23,155.1,15.1113]
[1729097932236,16.1056,155.23,155.1,27.68310778]
[1729097932443,16.1056,155.23,155.16,6.4449]
[1729097932662,21.5522,155.24,155.14,11.45131796]
[1729097932865,16.1019,155.27,155.18,6.444]
[1729097932866,6.4423,155.23,155.18,6.444]
[1729097933042,6.4425,155.22,155.18,6.444]
[1729097933671,6.4425,155.22,155.17,6.4444]
[1729097934555,6.4425,155.22,155.18,23.776884]
[1729097936741,21.5522,155.28,155.2,11.45131796]
[1729097937062,6.4404,155.27,155.23,6.442]
[1729097937367,6.4404,155.27,155.23,23.776884]
[1729097937749,6.4408,155.26,155.23,23.776884]
[1729097938859,6.4403,155.28,155.23,23.776884]
[1729097939044,6.4403,155.28,155.24,6.4414]
[1729097940043,6.4403,155.28,155.25,23.776884]
[1729097940244,6.4396,155.29,155.25,23.776884]
[1729097940654,22.9298,155.32,155.25,23.776884]
[1729097940847,22.9298,155.32,155.25,30.217984]
[1729097941053,6.4396,155.29,155.25,30.217984]
[1729097943550,6.4396,155.29,155.25,23.776884]
[1729097944765,6.4388,155.31,155.28,23.776884]
[1729097945866,6.4388,155.31,155.27,23.776884]
[1729097946379,6.4388,155.31,155.27,30.217084]
[1729097947077,6.4386,155.32,155.28,6.4399]
[1729097947279,6.4386,155.32,155.29,23.776884]
[1729097947653,6.4386,155.32,155.28,23.776884]
[1729097947858,6.4386,155.32,155.28,30.216684]
[1729097948565,6.4391,155.31,155.28,23.776884]
[1729097959463,6.4391,155.3,155.27,23.776884]
[1729097961885,6.438,155.33,155.29,6.4392]
[1729097962077,6.438,155.33,155.3,23.776884]
[1729097962380,6.72644813,155.36,155.3,23.776884]
[1729097962381,6.4387,155.31,155.3,23.776884]
[1729097963490,16.0954,155.33,155.25,6.4411]
[1729097963659,4.80079613,155.32,155.26,30.217584]
[1729097963859,16.0954,155.33,155.26,30.217584]
[1729097964063,4.80088757,155.32,155.26,30.217584]
[1729097964389,6.4392,155.3,155.26,30.217584]
[1729097967369,6.4374,155.34,155.31,23.776884]
[1729097968986,6.4398,155.29,155.25,6.4408]
[1729097969170,16.0952,155.33,155.23,33.32731796]
[1729097969377,6.4399,155.28,155.24,6.4415]
[1729097970688,6.4396,155.29,155.26,23.776884]
[1729097972388,6.4396,155.29,155.25,23.776884]
[1729097973083,16.0952,155.33,155.26,23.776884]
[1729097973290,4.80075808,155.32,155.29,23.776884]
[1729097973489,6.438,155.33,155.29,23.776884]
[1729097973868,16.0919,155.36,155.29,23.776884]
[1729097973869,6.4384,155.32,155.29,23.776884]
[1729097975870,8.20174791,155.37,155.27,23.776884]
[1729097976079,6.4395,155.29,155.27,23.776884]
[1729097976280,6.4395,155.29,155.26,23.776884]
[1729097976469,6.4391,155.3,155.26,30.217584]
[1729097977193,6.4387,155.31,155.27,6.4403]
[1729097977383,6.4387,155.31,155.28,23.776884]
[1729097977581,6.4387,155.31,155.26,30.217484]
[1729097983295,4.81517097,155.3,155.26,30.217484]
[1729097983494,6.4387,155.31,155.26,30.217484]
[1729097983689,4.81522403,155.3,155.26,30.217484]
[1729097983894,6.4387,155.31,155.26,23.776884]
[1729097984088,4.81522403,155.3,155.28,23.776884]
[1729097984282,6.4387,155.31,155.28,23.776884]
[1729097984491,4.81748026,155.3,155.28,23.776884]
[1729097984794,6.4381,155.33,155.29,6.4394]
[1729097984995,12.52540451,155.32,155.31,6.4387]
[1729097985309,8.02916381,155.37,155.31,23.776884]
[1729097985599,32.2688,155.43,155.35,30.213884]
[1729097985600,12.52331452,155.36,155.35,30.213884]
[1729097985810,6.4351,155.4,155.35,30.213884]
[1729097985979,12.52123483,155.39,155.35,30.213884]
[1729097986175,12.52123483,155.38,155.35,30.213884]
[1729097986389,6.4351,155.4,155.35,30.213884]
[1729097986590,12.51088686,155.39,155.35,30.213884]
[1729097986779,6.4351,155.4,155.35,30.213884]
[1729097986780,4.81187956,155.38,155.35,30.213884]
[1729097986975,6.4351,155.4,155.37,23.776884]
[1729097987187,4.81160036,155.39,155.37,23.776884]
[1729097987382,6.4351,155.4,155.37,23.776884]
[1729097987587,4.80856821,155.39,155.37,23.776884]
[1729097987796,6.4351,155.4,155.37,23.776884]
[1729097988185,4.80855022,155.39,155.37,23.776884]
[1729097988386,8.01425037,155.44,155.36,23.776884]
[1729097988603,12.49472516,155.43,155.39,23.776884]
[1729097988778,4.80566352,155.42,155.39,23.776884]
[1729097988984,4.80566352,155.41,155.39,23.776884]
[1729097989286,6.4342,155.42,155.38,23.776884]
[1729097989492,16.1819,155.46,155.38,30.212284]
[1729097989493,6.4338,155.43,155.38,30.212284]
[1729097989696,4.80246535,155.42,155.38,30.212284]
[1729097989882,6.4338,155.43,155.38,30.212284]
[1729097990213,4.80246162,155.42,155.38,30.212284]
[1729097990508,6.4338,155.43,155.38,30.212284]
[1729097990686,4.79998844,155.42,155.38,30.212284]
[1729097990887,6.4338,155.43,155.38,30.212284]
[1729097991108,4.79998844,155.42,155.38,30.212284]
[1729097991407,6.4334,155.44,155.4,23.776884]
[1729097991590,4.79748715,155.43,155.4,23.776884]
[1729097991796,6.4334,155.44,155.4,23.776884]
[1729097991996,4.79748943,155.43,155.4,23.776884]
[1729097992191,6.4334,155.44,155.4,23.776884]
[1729097992396,4.79533858,155.43,155.4,23.776884]
[1729097992597,6.4334,155.44,155.4,23.776884]
[1729097992907,11.22943423,155.43,155.4,23.776884]
[1729097993120,24.09545037,155.47,155.4,23.776884]
[1729097993301,12.46321641,155.46,155.4,23.776884]
[1729097993609,12.46321641,155.45,155.4,23.776884]
[1729097993839,6.4344,155.42,155.4,23.776884]
[1729097994505,16.0812,155.47,155.39,23.776884]
[1729097994714,6.4338,155.43,155.39,30.211984]
[1729097994904,6.4338,155.43,155.39,23.776884]
[1729097995902,7.98178288,155.49,155.39,23.776884]
[1729097996087,6.4332,155.45,155.4,6.4348]
[1729097996298,6.4337,155.43,155.39,23.776884]
[1729097997110,6.4352,155.4,155.35,29.0903]
[1729097997489,6.4354,155.39,155.35,22.9171]
[1729097997903,6.435,155.4,155.35,22.9171]
[1729097998611,6.435,155.4,155.36,23.776884]
[1729097999510,6.4358,155.38,155.32,20.0]
[1729097999907,6.4358,155.38,155.33,6.4376]
[1729098000108,6.4349,155.41,155.36,6.4363]
[1729098000327,30.39051737,155.49,155.38,11.45307281]
[1729098000517,6.4328,155.46,155.41,6.4345]
[1729098000722,6.4325,155.46,155.43,23.776884]
[1729098001035,22.4155,155.49,155.42,23.776884]
[1729098001214,6.433,155.45,155.42,23.776884]
[1729098001416,6.4328,155.46,155.42,23.776884]
[1729098001613,6.4329,155.45,155.42,23.776884]
[1729098001817,22.4155,155.49,155.42,23.776884]
[1729098001818,6.4326,155.46,155.42,23.776884]
[1729098002606,22.4155,155.49,155.42,30.210984]
[1729098002911,6.4321,155.47,155.42,23.776884]
[1729098003112,6.4321,155.47,155.44,23.776884]
[1729098003533,6.432,155.48,155.44,23.776884]
[1729098007202,16.7050713,155.51,155.42,16.5575]
[1729098007403,6.4335,155.44,155.39,6.4351]
[1729098007606,16.0792,155.48,155.4,20.0]
[1729098007833,16.0792,155.48,155.39,6.4352]
[1729098008042,16.0792,155.48,155.38,15.723]
[1729098008043,21.8885,155.47,155.38,15.723]
[1729098008334,6.4354,155.39,155.34,6.4371]
[1729098008511,0.2,155.46,155.34,6.4371]
[1729098008512,6.4359,155.38,155.34,6.4371]
[1729098008850,16.0837,155.44,155.34,6.4371]
[1729098009047,6.4366,155.37,155.33,15.5745]
[1729098009342,6.4373,155.35,155.29,15.9636]
[1729098009633,16.0869,155.41,155.29,15.9636]
[1729098009816,6.4353,155.4,155.34,6.4372]
[1729098010022,6.4347,155.41,155.29,33.95693461]
[1729098010210,16.083,155.45,155.31,17.89333461]
[1729098010514,54.0497,155.47,155.33,17.89333461]
[1729098010515,21.8885,155.47,155.33,17.89333461]
[1729098010716,21.8885,155.47,155.37,6.4358]
[1729098010717,6.4342,155.42,155.37,6.4358]
[1729098010927,6.4338,155.43,155.38,30.212584]
[1729098011141,21.8885,155.47,155.37,23.776884]
[1729098011319,38.1702713,155.51,155.4,20.0]
[1729098011634,6.432,155.48,155.43,6.4334]
[1729098011843,38.1702713,155.51,155.41,23.776884]
[1729098012137,6.4321,155.47,155.41,23.776884]
[1729098012335,6.432,155.48,155.43,6.4336]
[1729098013250,6.4322,155.47,155.42,6.4341]
[1729098014032,6.4313,155.49,155.44,6.4331]
[1729098015039,6.4321,155.47,155.42,15.0697]
[1729098015234,16.8048713,155.51,155.4,6.4346]
[1729098015551,0.1,155.48,155.38,6.4357]
[1729098015741,6.4342,155.42,155.37,22.0545]
[1729098015945,6.4347,155.41,155.37,15.6183]
[1729098016139,6.4342,155.42,155.37,22.0544]
[1729098016461,6.4342,155.42,155.37,6.4361]
[1729098016660,6.2031,155.42,155.33,16.2538]
[1729098016962,6.4361,155.38,155.33,22.6914]
[1729098017133,6.4361,155.38,155.34,6.4374]
[1729098018957,16.6509,155.43,155.34,23.776884]
[1729098019129,6.4346,155.41,155.37,6.4361]
[1729098019555,32.8362,155.43,155.33,16.2538]
[1729098019952,6.436,155.38,155.33,22.6913]
[1729098020159,6.4369,155.36,155.31,6.4386]
[1729098020658,6.4369,155.36,155.32,6.4382]
[1729098021244,6.4369,155.36,155.31,6.4387]
[1729098022042,6.4366,155.37,155.32,6.4382]
[1729098023355,6.4366,155.37,155.3,23.776884]
[1729098023356,0.1,155.42,155.3,23.776884]
[1729098023668,6.4363,155.37,155.32,6.438]
[1729098023960,16.1873,155.41,155.3,23.776884]
[1729098024279,6.4371,155.35,155.3,30.215884]
[1729098024739,6.4375,155.34,155.3,30.215884]
[1729098025141,6.4375,155.34,155.29,6.4394]
[1729098025354,6.1835,155.38,155.29,6.4394]
[1729098025555,6.4379,155.33,155.29,6.4394]
[1729098027277,6.437,155.36,155.27,23.776884]
[1729098027562,6.4371,155.35,155.31,6.4386]
[1729098027867,6.1835,155.38,155.27,23.776884]
[1729098028166,6.438,155.33,155.28,6.4396]
[1729098028339,6.4384,155.32,155.28,6.4396]
[1729098029145,6.4384,155.32,155.26,15.3779]
[1729098030360,6.4384,155.32,155.24,24.41253461]
[1729098030361,16.193,155.35,155.24,6.5192]
[1729098030567,6.4392,155.3,155.26,6.4407]
[1729098031142,6.4388,155.31,155.26,6.4407]
[1729098031374,6.4397,155.29,155.25,6.4412]
[1729098031562,6.4392,155.3,155.25,6.4412]
[1729098031751,6.4392,155.3,155.24,6.5192]
[1729098031965,6.4392,155.3,155.26,6.4406]
[1729098032348,6.4396,155.29,155.22,34.31243461]
[1729098032551,6.4401,155.28,155.24,6.4413]
[1729098032762,6.4396,155.29,155.24,6.4413]
[1729098033071,6.4402,155.28,155.23,6.4419]
[1729098033446,6.4407,155.27,155.22,16.4191]
[1729098034466,6.4407,155.27,155.23,6.4418]
[1729098035141,6.44,155.28,155.24,6.4416]
[1729098036757,16.0932,155.35,155.23,23.776884]
[1729098037173,6.4387,155.31,155.27,6.44]
[1729098037468,6.4387,155.31,155.23,23.776884]
[1729098037469,15.8219,155.36,155.24,17.89333461]
[1729098037667,15.8219,155.36,155.28,6.4396]
[1729098037668,6.4379,155.33,155.28,6.4396]
[1729098038241,22.52781785,155.36,155.28,6.4396]
[1729098038242,6.4385,155.32,155.28,6.4396]
[1729098046860,38.71991785,155.36,155.25,23.776884]
[1729098047073,6.4387,155.31,155.27,6.4402]
[1729098047380,0.1,155.33,155.22,16.4191]
[1729098047592,6.4396,155.29,155.22,16.4191]
[1729098048481,6.4396,155.29,155.25,6.4412]
[1729098048966,6.4396,155.29,155.24,6.4415]
[1729098050983,6.44,155.28,155.24,6.4415]
[1729098051776,6.4384,155.32,155.28,6.4399]
[1729098052077,6.4387,155.31,155.27,6.4403]
[1729098052584,6.4391,155.3,155.26,6.4406]
[1729098052785,6.4399,155.29,155.24,6.4412]
[1729098053076,6.44,155.28,155.24,6.4412]
[1729098053860,6.4396,155.29,155.25,6.4411]
[1729098058586,6.4426,155.22,155.18,22.9263]
[1729098058783,6.443,155.21,155.18,16.4824]
[1729098058956,32.2986,155.29,155.18,16.4824]
[1729098058957,22.8045371,155.29,155.18,16.4824]
[1729098059159,6.4404,155.27,155.22,6.4423]
[1729098059473,6.4407,155.27,155.22,6.4423]
[1729098059869,6.7050371,155.29,155.22,6.4423]
[1729098060177,4.79278535,155.28,155.18,34.37573461]
[1729098060387,6.4413,155.25,155.21,6.4428]
[1729098060565,6.4408,155.26,155.21,6.4428]
[1729098060763,6.7050371,155.29,155.19,23.776884]
[1729098060764,6.4404,155.27,155.19,23.776884]
[1729098061065,6.44,155.28,155.23,6.4419]
[1729098061473,15.5165,155.32,155.21,23.776884]
[1729098061474,6.70330684,155.31,155.21,23.776884]
[1729098061677,6.4397,155.29,155.24,6.4412]
[1729098061881,6.4397,155.29,155.21,23.776884]
[1729098062066,6.70330684,155.31,155.23,23.776884]
[1729098062380,6.2812,155.33,155.24,16.3107]
[1729098062381,4.80104591,155.3,155.24,16.3107]
[1729098062587,4.80104591,155.29,155.21,23.776884]
[1729098062786,6.4409,155.26,155.21,30.219684]
[1729098063767,6.4409,155.26,155.2,16.3107]
[1729098063768,6.4413,155.25,155.2,6.443]
[1729098064387,6.4416,155.24,155.2,6.443]
[1729098064975,6.4423,155.23,155.16,34.20403461]
[1729098065860,6.4423,155.23,155.19,6.4436]
[1729098066388,6.4423,155.23,155.17,23.776884]
[1729098066580,6.4437,155.19,155.16,16.3107]
[1729098066883,6.4436,155.2,155.16,22.7555]
[1729098067084,6.4429,155.21,155.16,22.7555]
[1729098067387,6.4433,155.2,155.16,22.7555]
[1729098067880,6.4433,155.2,155.16,6.4448]
[1729098068078,6.4429,155.21,155.16,6.4448]
[1729098069468,6.4427,155.22,155.13,43.776884]
[1729098069782,6.4427,155.22,155.18,6.4439]
[1729098073171,6.4421,155.23,155.19,6.4436]
[1729098073690,6.4411,155.26,155.21,6.4427]
[1729098074270,6.4032,155.27,155.21,6.4427]
[1729098074467,6.4413,155.25,155.21,6.4427]
[1729098076072,6.4417,155.24,155.2,6.443]
[1729098076604,6.4032,155.27,155.2,6.443]
[1729098076605,6.4413,155.25,155.2,6.443]
[1729098076782,6.4413,155.25,155.21,6.4426]
[1729098077371,6.442,155.23,155.19,6.4436]
[1729098077780,6.4425,155.22,155.18,6.444]
[1729098079291,6.4032,155.27,155.18,17.89333461]
[1729098079599,6.4401,155.28,155.18,17.89333461]
[1729098079787,6.70352473,155.29,155.19,23.776884]
[1729098080293,6.4404,155.27,155.23,6.4419]
[1729098082196,6.4404,155.27,155.19,23.776884]
[1729098082197,6.441,155.26,155.22,6.4424]
[1729098082777,6.4404,155.27,155.22,6.4424]
[1729098083390,6.4414,155.25,155.21,6.4425]
[1729098083588,6.4414,155.25,155.16,33.71243461]
[1729098083589,6.70352473,155.29,155.17,20.0]
[1729098083789,12.47832647,155.28,155.17,20.0]
[1729098084103,12.47832647,155.28,155.16,15.8191]
[1729098084104,20.90059226,155.27,155.16,15.8191]
[1729098084308,16.1013,155.27,155.16,15.8191]
[1729098084488,6.4425,155.22,155.18,6.4438]
[1729098084903,6.214,155.25,155.16,15.8191]
[1729098085111,16.0977,155.24,155.16,6.4448]
[1729098085281,6.4435,155.2,155.16,6.4448]
[1729098086403,16.0977,155.24,155.13,6.5376]
[1729098086700,6.4429,155.21,155.17,6.4445]
[1729098087007,16.0977,155.24,155.18,6.444]
[1729098087183,6.4421,155.23,155.14,41.67021861]
[1729098087385,16.0977,155.24,155.2,6.4432]
[1729098087386,6.4417,155.24,155.2,6.4432]
[1729098087592,6.4417,155.24,155.16,17.89333461]
[1729098087991,6.4422,155.23,155.19,6.4436]
[1729098088695,6.4424,155.22,155.18,6.444]
[1729098089181,6.442,155.23,155.19,6.4434]
[1729098089604,6.4425,155.22,155.18,6.4438]
[1729098089791,6.4421,155.23,155.14,41.67021861]
[1729098090104,6.4421,155.23,155.19,6.4435]
[1729098091113,6.70499967,155.26,155.16,17.89333461]
[1729098091436,11.24355779,155.25,155.21,6.4428]
[1729098091607,6.4412,155.25,155.21,6.4428]
[1729098092111,6.4412,155.25,155.19,23.776884]
[1729098092930,6.4412,155.25,155.21,6.4426]
[1729098096310,4.80815462,155.24,155.21,6.4426]
[1729098096501,6.4412,155.25,155.21,6.4426]
[1729098096812,4.80844337,155.24,155.21,6.4426]
[1729098096998,6.4412,155.25,155.21,6.4426]
[1729098097487,6.4412,155.25,155.18,15.235]
[1729098097488,4.80882032,155.24,155.2,6.4431]
[1729098097688,4.80960521,155.23,155.14,16.4071]
[1729098097991,6.443,155.21,155.16,6.4449]
[1729098098403,6.443,155.21,155.17,6.4444]
[1729098098793,14.71970021,155.26,155.21,6.4424]
[1729098098794,21.16060021,155.26,155.21,6.4424]
[1729098099000,21.16060021,155.26,155.16,17.89333461]
[1729098099001,12.50771676,155.25,155.17,23.776884]
[1729098099206,4.81066029,155.24,155.17,23.776884]
[1729098099383,4.81066029,155.24,155.2,6.4431]
[1729098099384,11.25226029,155.24,155.2,6.4431]
[1729098099587,6.4416,155.24,155.2,6.4431]
[1729098101722,6.4422,155.23,155.19,6.4436]
[1729098103317,6.4426,155.22,155.18,6.4441]
[1729098104496,8.01470054,155.25,155.16,11.48633371]
[1729098104704,11.26103805,155.24,155.17,23.776884]
[1729098104907,12.52949893,155.23,155.2,6.4432]
[1729098105214,6.442,155.24,155.2,6.4432]
[1729098105411,11.26068457,155.23,155.19,6.4436]
[1729098105619,4.81858457,155.22,155.19,6.4436]
[1729098106290,4.81858457,155.22,155.18,6.4439]
[1729098108315,4.81858457,155.21,155.18,6.4439]
[1729098108516,6.4421,155.23,155.18,6.4439]
[1729098108816,4.82141528,155.22,155.18,6.4439]
[1729098108988,4.82141528,155.21,155.17,23.776884]
[1729098109192,6.4421,155.23,155.19,6.4436]
[1729098109404,4.82187862,155.22,155.19,6.4436]
[1729098109614,4.82187862,155.21,155.19,6.4436]
[1729098109789,8.01470054,155.25,155.17,23.776884]
[1729098109790,6.4416,155.25,155.18,11.48633371]
[1729098109990,12.53616804,155.24,155.21,6.4428]
[1729098110206,12.53616804,155.23,155.18,11.48633371]
[1729098110417,14.71970021,155.26,155.2,6.4432]
[1729098110418,4.82160309,155.22,155.2,6.4432]
[1729098110723,6.4416,155.24,155.2,6.4432]
[1729098111024,12.53669633,155.23,155.2,6.4432]
[1729098111331,4.82180628,155.22,155.2,6.4432]
[1729098111505,6.4416,155.24,155.2,6.4432]
[1729098111826,12.53645375,155.23,155.2,6.4432]
[1729098112008,4.82171298,155.22,155.2,6.4432]
[1729098112207,6.4416,155.24,155.2,6.4432]
[1729098112419,4.82162146,155.23,155.2,6.4432]
[1729098112929,4.82162146,155.22,155.2,6.4432]
[1729098113127,6.4416,155.24,155.2,6.4432]
[1729098113296,4.82169569,155.23,155.2,6.4432]
[1729098113499,4.82169569,155.22,155.19,6.4434]
[1729098113696,4.82169569,155.21,155.19,6.4434]
[1729098113937,6.4417,155.24,155.19,6.4434]
[1729098114121,12.53719041,155.23,155.19,6.4434]
[1729098114299,4.82199631,155.22,155.19,6.4434]
[1729098114497,4.82199631,155.21,155.19,6.4434]
[1729098114718,6.4417,155.24,155.19,6.4434]
[1729098114916,12.53785332,155.23,155.19,6.4434]
[1729098115111,4.82225128,155.22,155.19,6.4434]
[1729098115322,6.4417,155.24,155.19,6.4434]
[1729098115527,4.82283109,155.23,155.2,6.4431]
[1729098115702,4.82283109,155.22,155.2,6.4431]
[1729098115897,6.4417,155.24,155.2,6.4431]
[1729098116099,4.82256868,155.23,155.2,6.4431]
[1729098116330,6.4417,155.24,155.2,6.4431]
[1729098116527,4.82291136,155.22,155.2,6.4431]
[1729098116738,6.4417,155.24,155.2,6.4431]
[1729098117031,4.8229532,155.23,155.2,6.4431]
[1729098117326,4.8229532,155.22,155.2,6.4431]
[1729098117625,4.8229532,155.21,155.2,6.4431]
[1729098117929,6.4417,155.24,155.2,6.4431]
[1729098118111,12.54137974,155.23,155.2,6.4431]
[1729098118308,4.82360759,155.22,155.2,6.4431]
[1729098118504,4.82360759,155.21,155.2,6.4431]
[1729098118915,12.5421321,155.23,155.2,6.4431]
[1729098119111,4.82360759,155.22,155.2,6.4431]
[1729098119312,4.82360759,155.21,155.2,6.4431]
[1729098119723,12.54263466,155.23,155.2,6.4431]
[1729098119928,4.82360759,155.22,155.2,6.4431]
[1729098120119,4.82360759,155.21,155.2,6.4431]
[1729098120319,6.4417,155.24,155.2,6.4431]
[1729098120519,12.54352084,155.23,155.2,6.4431]
[1729098120826,4.82445236,155.22,155.21,6.4428]
[1729098121029,14.74575361,155.26,155.21,6.4428]
[1729098121246,6.4424,155.22,155.17,23.776884]
[1729098121413,14.74575361,155.26,155.17,23.776884]
[1729098121414,4.82385048,155.21,155.17,23.776884]
[1729098121601,6.70499967,155.26,155.17,23.776884]
[1729098121602,6.4421,155.23,155.19,6.4437]
[1729098121801,12.54318016,155.22,155.19,6.4437]
[1729098122019,4.82430006,155.21,155.19,6.4437]
[1729098122238,6.4421,155.23,155.19,6.4437]
[1729098122531,6.70499967,155.26,155.18,6.444]
[1729098122532,6.4425,155.22,155.18,6.444]
[1729098122731,4.82454227,155.21,155.18,6.444]
[1729098122919,6.4422,155.23,155.18,6.444]
[1729098123118,12.54340298,155.22,155.18,6.444]
[1729098123307,4.82438576,155.21,155.18,6.444]
[1729098123507,6.4422,155.23,155.18,6.444]
[1729098123707,6.4422,155.23,155.19,6.4436]
[1729098123708,12.54385034,155.22,155.19,6.4436]
[1729098123933,4.82455782,155.21,155.19,6.4436]
[1729098124227,6.4422,155.23,155.19,6.4436]
[1729098124431,12.5439821,155.22,155.19,6.4436]
[1729098124732,4.8246085,155.21,155.19,6.4436]
[1729098125026,6.4422,155.23,155.19,6.4436]
[1729098125220,12.54409794,155.22,155.19,6.4436]
[1729098125419,4.82465305,155.21,155.19,6.4436]
[1729098125626,6.4422,155.23,155.19,6.4436]
[1729098125932,12.54474751,155.22,155.19,6.4436]
[1729098126110,4.82490289,155.21,155.19,6.4436]
[1729098126306,6.4422,155.23,155.19,6.4436]
[1729098126507,4.82571889,155.2,155.19,6.4436]
[1729098126927,4.8257238,155.2,155.17,35.26321771]
[1729098127126,6.4418,155.24,155.2,6.4432]
[1729098127325,12.54656863,155.23,155.2,6.4432]
[1729098127522,12.54656863,155.22,155.19,6.4436]
[1729098127834,6.4421,155.23,155.19,6.4436]
[1729098127835,4.82560332,155.21,155.19,6.4436]
[1729098128134,4.82560332,155.2,155.18,6.444]
[1729098128313,4.82560332,155.2,155.16,23.776884]
[1729098128314,6.443,155.21,155.17,6.4445]
[1729098128520,4.82703733,155.2,155.17,6.4445]
[1729098128714,4.82703733,155.19,155.17,6.4445]
[1729098128912,6.443,155.21,155.17,6.4445]
[1729098129109,4.82703733,155.2,155.18,6.444]
[1729098129315,4.82703733,155.19,155.18,6.444]
[1729098129511,4.82703733,155.19,155.14,16.4071]
[1729098129717,6.443,155.21,155.16,6.4448]
[1729098129930,12.55266389,155.2,155.16,6.4448]
[1729098130150,4.82794765,155.19,155.16,6.4448]
[1729098130315,7.72473899,155.2,155.16,6.4448]
[1729098130517,4.82783341,155.19,155.16,6.4448]
[1729098130719,14.67388027,155.23,155.16,6.4448]
[1729098130927,6.4434,155.2,155.16,6.4448]
[1729098131240,4.82784449,155.19,155.16,6.4448]
[1729098131450,6.4434,155.2,155.16,6.4448]
[1729098131619,4.82760219,155.19,155.16,6.4448]
[1729098131821,6.4429,155.21,155.16,6.4448]
[1729098132026,12.55235927,155.2,155.16,6.4448]
[1729098132341,12.55235927,155.19,155.16,6.4448]
[1729098132543,4.82786804,155.18,155.16,6.4448]
[1729098132739,6.4429,155.21,155.16,6.4448]
[1729098133041,12.55203022,155.2,155.16,6.4448]
[1729098133339,12.55203022,155.19,155.16,6.4448]
[1729098133533,4.82770393,155.18,155.16,6.4448]
[1729098133733,6.4433,155.2,155.16,6.4448]
[1729098133940,4.8274341,155.19,155.16,6.4448]
[1729098134121,4.8274341,155.18,155.16,6.4448]
[1729098134319,6.4433,155.2,155.16,6.4448]
[1729098134529,4.82691223,155.19,155.16,6.4448]
[1729098134842,4.82691223,155.18,155.16,6.4448]
[1729098135044,6.4433,155.2,155.16,6.4448]
[1729098135230,4.8269908,155.19,155.16,6.4448]
[1729098135539,4.8269908,155.18,155.15,6.4452]
[1729098135747,4.8269908,155.17,155.15,6.4452]
[1729098136039,6.4437,155.19,155.15,6.4452]
[1729098136222,12.55002196,155.18,155.15,6.4452]
[1729098136422,4.82566521,155.17,155.15,6.4452]
[1729098136622,6.4437,155.19,155.15,6.4452]
[1729098136823,4.82553028,155.18,155.15,6.4452]
[1729098137145,6.4437,155.19,155.15,6.4452]
[1729098137636,4.82542665,155.18,155.15,6.4452]
[1729098137835,6.4434,155.2,155.15,6.4452]
[1729098138052,12.54431675,155.19,155.15,6.4452]
[1729098138253,4.82473721,155.18,155.15,6.4452]